[Event "23rd OIBM 2019"]
[Site "Gmund am Tegernsee"]
[Date "2019.10.31"]
[Round "6.25"]
[White "Voss, Gunther"]
[Black "Badelka, Olga"]
[Result "0-1"]
[ECO "B24"]
[WhiteElo "2089"]
[BlackElo "2413"]
[Annotator "NA RC"]
[PlyCount "41"]
[EventDate "2019.10.17"]
[EventType "swiss"]
[EventCountry "GER"]
[SourceTitle "playchess.com"]
[Source "ChessBase"]
[SourceQuality "1"]
[TimeControl "40/5400+30:1800+30"]

1. e4 {[%emt 0:00:00]} c5 {[%emt 0:00:00]} 2. Nc3 {[%emt 0:00:00]} Nc6 {[%emt 0:00:01]} 3. a3 {[%emt 0:00:05]} e6 {[%emt 0:04:27]} 4. Nf3 {[%emt 0:00:14]} Nf6 {[%emt 0:02:52]} 5. d4 {[%emt 0:00:19]} cxd4 {[%emt 0:00:16]} 6. Nxd4 {[%emt 0:00:07]} d6 {[%emt 0:04:10]} 7. Be2 {[%emt 0:03:28]} Be7 {[%emt 0:00:16]} 8. Be3 {[%emt 0:00:57]} O-O {[%emt 0:00:56]} 9. g4 {[%emt 0:00:17]} d5 {[%emt 0:04:21]} 10. exd5 {[%emt 0:01:09]} Nxd5 {[%emt 0:00:39]} 11. Nxd5 {[%emt 0:00:49]} exd5 {[%emt 0:00:05]} 12. Qd2 {[%emt 0:06:21]} Ne5 {[%emt 0:06:28]} 13. g5 {[%emt 0:03:11]} Bd7 {[%emt 0:16:08]} 14. Nf3 {[%emt 0:15:51]} Nc4 {[%emt 0:04:44]} 15. Bxc4 {[%emt 0:02:46]} dxc4 {[%emt 0:00:02]} 16. Rd1 {[%emt 0:00:30]} Bc6 {[%emt 0:02:55]} 17. Qxd8 {[%emt 0:00:51]} Bxd8 {[%emt 0:05:17]} 18. Ke2 {[%emt 0:00:28]} f5 {[%emt 0:00:12]} 19. Rhe1 {[%emt 0:08:19]} Re8 {[%emt 0:00:07]} 20. Rd4 {[%emt 0:00:40]} Bc7 {[%emt 0:00:24]} 21. Ng1 0-1

[Event "23rd OIBM 2019"]
[Site "Gmund am Tegernsee"]
[Date "2019.10.31"]
[Round "6.27"]
[White "Atakisi, Umut"]
[Black "Basener, Winfried"]
[Result "1-0"]
[ECO "C06"]
[WhiteElo "2393"]
[BlackElo "2084"]
[Annotator "RC"]
[PlyCount "113"]
[EventDate "2019.10.17"]
[EventType "swiss"]
[EventCountry "GER"]
[SourceTitle "playchess.com"]
[Source "ChessBase"]
[SourceQuality "1"]
[TimeControl "40/5400+30:1800+30"]

1. e4 {[%emt 0:00:00]} e6 {[%emt 0:00:00]} 2. d4 {[%emt 0:00:00]} d5 {[%emt 0:00:04]} 3. Nd2 {[%emt 0:00:00]} Nf6 {[%emt 0:00:28]} 4. e5 {[%emt 0:00:00]} Nfd7 {[%emt 0:00:05]} 5. Bd3 {[%emt 0:00:00]} c5 {[%emt 0:00:47]} 6. c3 {[%emt 0:00:00]} Nc6 {[%emt 0:00:23]} 7. Ne2 {[%emt 0:00:02]} cxd4 {[%emt 0:01:28]} 8. cxd4 {[%emt 0:00:06]} f6 {[%emt 0:00:39]} 9. exf6 {[%emt 0:00:10]} Nxf6 {[%emt 0:00:08]} 10. O-O {[%emt 0:00:07]} Bd6 {[%emt 0:00:29]} 11. Nf3 {[%emt 0:00:07]} Qc7 {[%emt 0:00:29]} 12. Bg5 {[%emt 0:00:33]} O-O {[%emt 0:00:11]} 13. Bh4 {[%emt 0:00:14]} g6 {[%emt 0:01:40]} 14. Bg3 {[%emt 0:01:39]} Nh5 {[%emt 0:13:19]} 15. Bxd6 {[%emt 0:11:06]} Qxd6 {[%emt 0:00:08]} 16. Bb5 {[%emt 0:02:48]} Rxf3 {[%emt 0:05:15]} 17. gxf3 {[%emt 0:04:14]} Bd7 {[%emt 0:02:43]} 18. Bxc6 {[%emt 0:08:09]} bxc6 {[%emt 0:08:06]} 19. Rc1 {[%emt 0:19:17]} Rf8 {[%emt 0:01:04]} 20. Rc3 {[%emt 0:04:05]} Nf4 {[%emt 0:27:40]} 21. Nxf4 {[%emt 0:07:42]} Rxf4 {[%emt 0:04:47]} 22. Re1 {[%emt 0:05:47]} a5 {[%emt 0:17:07]} 23. Qd2 {[%emt 0:08:40]} Rh4 {[%emt 0:10:09]} 24. Re5 {[%emt 0:01:30]} Kf7 {[%emt 0:01:12]} 25. f4 {[%emt 0:02:31]} a4 {[%emt 0:01:21]} 26. Rf3 {[%emt 0:04:28]} c5 {[%emt 0:00:19]} 27. h3 {[%emt 0:02:21]} Kg7 {[%emt 0:01:13]} 28. dxc5 {[%emt 0:03:22]} Qxc5 {[%emt 0:00:05]} 29. Qc3 {[%emt 0:00:43]} Qxc3 {[%emt 0:00:22]} 30. bxc3 {[%emt 0:00:17]} Kf6 {[%emt 0:00:40]} 31. Kh2 {[%emt 0:01:16]} Rh6 {[%emt 0:01:41]} 32. Rfe3 {[%emt 0:02:02]} Rh5 {[%emt 0:00:28]} 33. Rxh5 {[%emt 0:00:31]} gxh5 {[%emt 0:00:01]} 34. Kg3 {[%emt 0:00:16]} Bb5 {[%emt 0:00:11]} 35. a3 {[%emt 0:01:30]} Be8 {[%emt 0:00:28]} 36. Re5 {[%emt 0:00:23]} Bg6 {[%emt 0:00:14]} 37. Re2 {[%emt 0:01:19]} Ke7 {[%emt 0:00:47]} 38. Rb2 {[%emt 0:00:17]} Kd6 {[%emt 0:00:11]} 39. Kh4 {[%emt 0:01:44]} Kc5 {[%emt 0:00:14]} 40. Rb4 {[%emt 0:00:07]} Bc2 {[%emt 0:00:30]} 41. Kxh5 {[%emt 0:30:26]} Kc6 {[%emt 0:18:57]} 42. Kh6 {[%emt 0:00:00]} Kc7 {[%emt 0:00:42]} 43. h4 {[%emt 0:00:00]} Kc6 {[%emt 0:08:38]} 44. h5 {[%emt 0:00:00]} Kc7 {[%emt 0:03:12]} 45. Kg7 {[%emt 0:00:00]} Kc6 {[%emt 0:00:27]} 46. h6 {[%emt 0:00:00]} Kc7 {[%emt 0:00:22]} 47. f5 {[%emt 0:00:00]} Bxf5 {[%emt 0:00:06]} 48. Rxa4 {[%emt 0:00:00]} e5 {[%emt 0:03:53]} 49. Kf6 {[%emt 0:00:00]} Bc2 {[%emt 0:00:10]} 50. Rb4 {[%emt 0:00:00]} e4 {[%emt 0:00:49]} 51. a4 {[%emt 0:00:00]} Bd3 {[%emt 0:00:32]} 52. a5 {[%emt 0:00:00]} Kc6 {[%emt 0:00:19]} 53. Ke5 {[%emt 0:00:00]} Kc5 {[%emt 0:00:09]} 54. Rd4 {[%emt 0:00:00]} Bc4 {[%emt 0:00:52]} 55. a6 {[%emt 0:00:00]} Bxa6 {[%emt 0:00:45]} 56. Rxd5+ {[%emt 0:00:00]} Kc4 57. Kxe4 {Kxd5+} 1-0

[Event "23rd OIBM 2019"]
[Site "Gmund am Tegernsee"]
[Date "2019.10.31"]
[Round "6.28"]
[White "Schaffarczyk, Andre"]
[Black "Lavrinenkov, Vadim"]
[Result "0-1"]
[ECO "B20"]
[WhiteElo "2084"]
[BlackElo "2306"]
[Annotator "RC"]
[PlyCount "106"]
[EventDate "2019.10.17"]
[EventType "swiss"]
[EventCountry "GER"]
[SourceTitle "playchess.com"]
[Source "ChessBase"]
[SourceQuality "1"]
[TimeControl "40/5400+30:1800+30"]

1. e4 {[%emt 0:00:00]} c5 {[%emt 0:00:15]} 2. Be2 {[%emt 0:00:00]} e6 {[%emt 0:01:39]} 3. f4 {[%emt 0:00:07]} d5 {[%emt 0:00:37]} 4. d3 {[%emt 0:00:24]} Nc6 {[%emt 0:00:31]} 5. Nf3 {[%emt 0:00:23]} g6 {[%emt 0:13:25]} 6. O-O {[%emt 0:01:27]} Bg7 {[%emt 0:00:05]} 7. Qe1 {[%emt 0:01:26]} Nge7 {[%emt 0:00:56]} 8. c3 {[%emt 0:01:00]} b6 {[%emt 0:00:18]} 9. e5 {[%emt 0:02:40]} Ba6 {[%emt 0:00:22]} 10. Na3 {[%emt 0:00:53]} Qd7 {[%emt 0:05:22]} 11. b4 {[%emt 0:02:31]} cxb4 {[%emt 0:04:38]} 12. cxb4 {[%emt 0:01:30]} Nd8 {[%emt 0:01:14]} 13. Rb1 {[%emt 0:07:59]} O-O {[%emt 0:00:35]} 14. b5 {[%emt 0:02:21]} Bb7 {[%emt 0:01:28]} 15. d4 {[%emt 0:04:58]} Rc8 {[%emt 0:01:37]} 16. Bd3 {[%emt 0:04:58]} f6 {[%emt 0:06:07]} 17. Bd2 {[%emt 0:06:25]} f5 {[%emt 0:05:40]} 18. h3 {[%emt 0:08:59]} Nf7 {[%emt 0:00:50]} 19. g4 {[%emt 0:02:32]} Rc7 {[%emt 0:07:04]} 20. Kh1 {[%emt 0:06:30]} Kh8 {[%emt 0:03:58]} 21. Rg1 {[%emt 0:01:48]} Rfc8 {[%emt 0:05:17]} 22. Rg2 {[%emt 0:24:37]} Qd8 {[%emt 0:09:17]} 23. Qh4 {[%emt 0:08:05]} Ng8 {[%emt 0:03:04]} 24. Qe1 {[%emt 0:02:11]} Ngh6 {[%emt 0:04:07]} 25. g5 {[%emt 0:00:43]} Ng8 {[%emt 0:00:06]} 26. h4 {[%emt 0:00:19]} Bf8 {[%emt 0:02:24]} 27. Rb3 {[%emt 0:00:29]} Ne7 {[%emt 0:02:49]} 28. h5 {[%emt 0:00:47]} gxh5 {[%emt 0:00:36]} 29. Qh4 {[%emt 0:01:45]} Ng6 {[%emt 0:00:18]} 30. Qxh5 {[%emt 0:00:57]} Kg8 {[%emt 0:00:17]} 31. Rh2 {[%emt 0:01:17]} Nfh8 {[%emt 0:00:17]} 32. Nc2 {[%emt 0:01:47]} Qd7 {[%emt 0:01:01]} 33. Nce1 {[%emt 0:02:19]} Ra8 {[%emt 0:07:28]} 34. Qh3 {[%emt 0:01:45]} a6 {[%emt 0:02:44]} 35. a4 {[%emt 0:00:04]} axb5 {[%emt 0:00:28]} 36. axb5 {[%emt 0:00:52]} Ra3 {[%emt 0:00:39]} 37. Rxa3 {[%emt 0:00:22]} Bxa3 {[%emt 0:00:02]} 38. Ng2 {[%emt 0:01:05]} Bc1 {[%emt 0:00:25]} 39. Bxc1 {[%emt 0:00:40]} Rxc1+ {[%emt 0:00:06]} 40. Ng1 {[%emt 0:00:30]} Qc7 {[%emt 0:02:19]} 41. Qh6 {[%emt 0:14:16]} Nf8 {[%emt 0:01:53]} 42. Rh3 {[%emt 0:04:19]} Nhg6 {[%emt 0:08:16]} 43. Kh2 {[%emt 0:01:21]} Rd1 {[%emt 0:04:38]} 44. Ne2 {[%emt 0:01:32]} Bc8 {[%emt 0:00:36]} 45. Nh4 {[%emt 0:03:33]} Rd2 {[%emt 0:05:30]} 46. Nxg6 {[%emt 0:00:53]} Nxg6 {[%emt 0:00:14]} 47. Kh1 {[%emt 0:02:00]} Nxf4 {[%emt 0:00:37]} 48. Qxh7+ {[%emt 0:05:34]} Qxh7 {[%emt 0:00:10]} 49. Rxh7 {[%emt 0:00:07]} Nxd3 {[%emt 0:00:43]} 50. Rc7 {[%emt 0:01:07]} Rxe2 {[%emt 0:00:09]} 51. Rxc8+ {[%emt 0:00:07]} Kf7 {[%emt 0:01:17]} 52. Rc7+ {[%emt 0:00:34]} Kg6 {[%emt 0:01:16]} 53. Rc6 {[%emt 0:00:31]} Nf4 0-1

[Event "23rd OIBM 2019"]
[Site "Gmund am Tegernsee"]
[Date "2019.10.31"]
[Round "6.29"]
[White "Kolb, Tobias"]
[Black "Ludvik, Tomas"]
[Result "0-1"]
[ECO "B26"]
[WhiteElo "2073"]
[BlackElo "2305"]
[Annotator "RC"]
[PlyCount "62"]
[EventDate "2019.10.17"]
[EventType "swiss"]
[EventCountry "GER"]
[SourceTitle "playchess.com"]
[Source "ChessBase"]
[SourceQuality "1"]
[TimeControl "40/5400+30:1800+30"]

1. e4 {[%emt 0:00:00]} c5 {[%emt 0:00:00]} 2. Nc3 {[%emt 0:00:00]} Nc6 {[%emt 0:00:00]} 3. g3 {[%emt 0:00:00]} g6 {[%emt 0:00:00]} 4. Bg2 {[%emt 0:00:00]} Bg7 {[%emt 0:00:03]} 5. d3 {[%emt 0:00:00]} d6 {[%emt 0:00:06]} 6. Be3 {[%emt 0:00:00]} Rb8 {[%emt 0:00:09]} 7. Qd2 {[%emt 0:00:00]} b5 {[%emt 0:00:12]} 8. Nf3 {[%emt 0:00:00]} b4 {[%emt 0:02:22]} 9. Nd1 {[%emt 0:00:04]} Nd4 {[%emt 0:01:45]} 10. O-O {[%emt 0:00:46]} Bg4 {[%emt 0:05:48]} 11. Nh4 {[%emt 0:01:23]} Qb6 {[%emt 0:05:57]} 12. c3 {[%emt 0:12:33]} bxc3 {[%emt 0:05:17]} 13. bxc3 {[%emt 0:01:15]} Nc6 {[%emt 0:01:03]} 14. f4 {[%emt 0:07:47]} Nf6 {[%emt 0:14:43]} 15. Nf2 {[%emt 0:16:33]} Bd7 {[%emt 0:05:43]} 16. e5 {[%emt 0:00:43]} dxe5 {[%emt 0:02:00]} 17. fxe5 {[%emt 0:00:28]} Nxe5 {[%emt 0:05:00]} 18. Bf4 {[%emt 0:25:38]} Nh5 {[%emt 0:03:33]} 19. Rae1 {[%emt 0:00:36]} Nxf4 {[%emt 0:02:16]} 20. Qxf4 {[%emt 0:04:37]} Nc6 {[%emt 0:13:10]} 21. Ng4 {[%emt 0:08:15]} O-O {[%emt 0:03:36]} 22. Nh6+ {[%emt 0:00:08]} Bxh6 {[%emt 0:01:04]} 23. Qxh6 {[%emt 0:00:03]} Rbe8 {[%emt 0:01:54]} 24. Nf3 {[%emt 0:03:32]} f6 {[%emt 0:01:58]} 25. Re4 {[%emt 0:03:37]} Bf5 {[%emt 0:02:54]} 26. Rh4 {[%emt 0:01:31]} Rf7 {[%emt 0:00:46]} 27. g4 {[%emt 0:04:47]} Bxd3 {[%emt 0:01:43]} 28. Ng5 {[%emt 0:01:05]} c4+ {[%emt 0:01:48]} 29. Kh1 {[%emt 0:00:46]} fxg5 {[%emt 0:02:54]} 30. Bd5 {[%emt 0:05:18]} e6 {[%emt 0:01:02]} 31. Bxe6 {[%emt 0:02:32]} Be4+ {[%emt 0:00:09]} 0-1

[Event "23rd OIBM 2019"]
[Site "Gmund am Tegernsee"]
[Date "2019.10.31"]
[Round "6.32"]
[White "Reuter, Roland"]
[Black "Szabo, Marton Mihaly"]
[Result "0-1"]
[ECO "B40"]
[WhiteElo "1904"]
[BlackElo "2282"]
[Annotator "RC"]
[PlyCount "130"]
[EventDate "2019.10.17"]
[EventType "swiss"]
[EventCountry "GER"]
[SourceTitle "playchess.com"]
[Source "ChessBase"]
[SourceQuality "1"]
[TimeControl "40/5400+30:1800+30"]

1. e4 {[%emt 0:00:00]} c5 {[%emt 0:00:09]} 2. Nf3 {[%emt 0:00:00]} e6 {[%emt 0:01:06]} 3. d4 {[%emt 0:00:26]} cxd4 {[%emt 0:00:06]} 4. Nxd4 {[%emt 0:00:06]} Bc5 {[%emt 0:00:46]} 5. Be3 {[%emt 0:01:01]} Qb6 {[%emt 0:00:29]} 6. Nc3 {[%emt 0:01:57]} Nc6 {[%emt 0:01:08]} 7. Na4 {[%emt 0:03:13]} Qa5+ {[%emt 0:00:13]} 8. c3 {[%emt 0:02:11]} Bxd4 {[%emt 0:00:23]} 9. Bxd4 {[%emt 0:00:08]} Nxd4 {[%emt 0:00:05]} 10. Qxd4 {[%emt 0:00:12]} e5 {[%emt 0:00:15]} 11. Qb4 {[%emt 0:02:32]} Qxb4 {[%emt 0:00:11]} 12. cxb4 {[%emt 0:00:06]} Nf6 {[%emt 0:00:26]} 13. Nc3 {[%emt 0:00:11]} d6 {[%emt 0:01:29]} 14. Bc4 {[%emt 0:01:44]} Be6 {[%emt 0:01:17]} 15. Bxe6 {[%emt 0:03:28]} fxe6 {[%emt 0:00:53]} 16. Rd1 {[%emt 0:01:42]} Ke7 {[%emt 0:00:26]} 17. O-O {[%emt 0:01:18]} Rac8 {[%emt 0:06:19]} 18. f3 {[%emt 0:08:21]} g5 {[%emt 0:02:14]} 19. Rd3 {[%emt 0:03:49]} Rhd8 {[%emt 0:01:22]} 20. Rfd1 {[%emt 0:01:13]} a6 {[%emt 0:00:42]} 21. g3 {[%emt 0:05:02]} Rd7 {[%emt 0:08:04]} 22. a3 {[%emt 0:04:00]} b5 {[%emt 0:04:09]} 23. Kf2 {[%emt 0:02:37]} h5 {[%emt 0:05:05]} 24. Ke2 {[%emt 0:03:31]} Rcd8 {[%emt 0:04:08]} 25. Re3 {[%emt 0:01:47]} h4 {[%emt 0:06:16]} 26. g4 {[%emt 0:06:34]} Nh7 {[%emt 0:01:32]} 27. Rc1 {[%emt 0:02:45]} Nf8 {[%emt 0:02:25]} 28. Nd1 {[%emt 0:05:15]} Ng6 {[%emt 0:02:03]} 29. Rec3 {[%emt 0:02:24]} d5 {[%emt 0:02:58]} 30. Rc7 {[%emt 0:03:26]} Nf4+ {[%emt 0:05:43]} 31. Ke3 {[%emt 0:04:00]} d4+ {[%emt 0:13:41]} 32. Kd2 {[%emt 0:00:10]} Nh3 {[%emt 0:01:00]} 33. Ke2 {[%emt 0:05:53]} Rxc7 {[%emt 0:05:32]} 34. Rxc7+ {[%emt 0:00:09]} Kd6 {[%emt 0:00:27]} 35. Ra7 {[%emt 0:02:37]} Rf8 {[%emt 0:01:34]} 36. Rxa6+ {[%emt 0:00:36]} Kd7 {[%emt 0:01:39]} 37. Ra7+ {[%emt 0:04:31]} Kc6 {[%emt 0:00:08]} 38. Nf2 {[%emt 0:08:38]} Ng1+ {[%emt 0:00:48]} 39. Kf1 {[%emt 0:01:09]} Nxf3 {[%emt 0:00:22]} 40. Kg2 {[%emt 0:02:44]} Nxh2 {[%emt 0:16:35]} 41. Ra6+ {[%emt 0:32:50]} Kc7 {[%emt 0:32:50]} 42. Rxe6 {[%emt 0:03:13]} Rxf2+ {[%emt 0:00:00]} 43. Kxf2 {[%emt 0:00:00]} Nxg4+ {[%emt 0:00:00]} 44. Ke2 {[%emt 0:00:00]} Ne3 {[%emt 0:00:00]} 45. Rxe5 {[%emt 0:00:00]} g4 {[%emt 0:00:00]} 46. Rh5 {[%emt 0:00:00]} h3 {[%emt 0:00:00]} 47. Kd3 {[%emt 0:00:00]} Nf1 {[%emt 0:00:00]} 48. Rh7+ {[%emt 0:00:00]} Kd6 {[%emt 0:02:23]} 49. Kxd4 {[%emt 0:00:00]} h2 {[%emt 0:00:37]} 50. e5+ {[%emt 0:00:00]} Ke6 {[%emt 0:00:23]} 51. Rh6+ {[%emt 0:00:00]} Kf5 {[%emt 0:04:27]} 52. e6 {[%emt 0:01:51]} g3 {[%emt 0:00:12]} 53. e7 {[%emt 0:00:45]} g2 {[%emt 0:00:21]} 54. Rh5+ {[%emt 0:01:01]} Kg4 {[%emt 0:00:49]} 55. e8=Q {[%emt 0:00:54]} g1=Q+ {[%emt 0:00:00]} 56. Kd5 {[%emt 0:01:35]} Ne3+ {[%emt 0:00:23]} 57. Kc6 {[%emt 0:00:42]} h1=Q+ {[%emt 0:01:04]} 58. Rxh1 {[%emt 0:00:08]} Qxh1+ {[%emt 0:00:15]} 59. Kxb5 {[%emt 0:01:34]} Qd5+ {[%emt 0:01:00]} 60. Ka4 {[%emt 0:01:08]} Nc4 {[%emt 0:00:33]} 61. Qg6+ {[%emt 0:00:54]} Kf4 {[%emt 0:00:19]} 62. Qf6+ {[%emt 0:00:54]} Ke4 {[%emt 0:00:39]} 63. Qg6+ {[%emt 0:00:49]} Kd4 {[%emt 0:00:26]} 64. Qg4+ {[%emt 0:00:18]} Kd3 {[%emt 0:00:37]} 65. Qg3+ {[%emt 0:01:52]} Kc2 {[%emt 0:00:31]} 0-1

[Event "23rd OIBM 2019"]
[Site "Gmund am Tegernsee"]
[Date "2019.10.31"]
[Round "6.34"]
[White "Raupp, Thomas"]
[Black "Kneutgen, Alexander"]
[Result "1/2-1/2"]
[ECO "A27"]
[WhiteElo "2259"]
[BlackElo "1889"]
[Annotator "RC"]
[PlyCount "76"]
[EventDate "2019.10.17"]
[EventType "swiss"]
[EventCountry "GER"]
[SourceTitle "playchess.com"]
[Source "ChessBase"]
[SourceQuality "1"]
[TimeControl "40/5400+30:1800+30"]

1. c4 {[%emt 0:00:00]} e5 {[%emt 0:00:00]} 2. Nc3 {[%emt 0:00:43]} Nc6 {[%emt 0:00:15]} 3. Nf3 {[%emt 0:00:15]} f5 {[%emt 0:01:13]} 4. d4 {[%emt 0:00:13]} e4 {[%emt 0:00:15]} 5. Ng5 {[%emt 0:00:05]} Bb4 {[%emt 0:01:13]} 6. Nh3 {[%emt 0:00:33]} Bxc3+ {[%emt 0:03:47]} 7. bxc3 {[%emt 0:01:12]} d6 {[%emt 0:01:04]} 8. Nf4 {[%emt 0:00:44]} Nf6 {[%emt 0:01:29]} 9. e3 {[%emt 0:01:34]} O-O {[%emt 0:02:47]} 10. h4 {[%emt 0:03:48]} g6 {[%emt 0:09:31]} 11. Ba3 {[%emt 0:11:33]} b6 {[%emt 0:06:30]} 12. c5 {[%emt 0:10:10]} Na5 {[%emt 0:01:25]} 13. cxd6 {[%emt 0:15:15]} cxd6 {[%emt 0:00:13]} 14. c4 {[%emt 0:00:36]} Re8 {[%emt 0:17:02]} 15. Qa4 {[%emt 0:25:52]} Ba6 {[%emt 0:05:01]} 16. d5 {[%emt 0:00:27]} Qd7 {[%emt 0:02:29]} 17. Qxd7 {[%emt 0:11:53]} Nxd7 {[%emt 0:00:03]} 18. Bxd6 {[%emt 0:00:09]} Bxc4 {[%emt 0:04:09]} 19. Bb4 {[%emt 0:00:30]} Bxf1 {[%emt 0:04:26]} 20. Rxf1 {[%emt 0:00:12]} Rac8 {[%emt 0:01:46]} 21. Bxa5 {[%emt 0:01:02]} bxa5 {[%emt 0:00:02]} 22. Kd2 {[%emt 0:00:08]} Ne5 {[%emt 0:03:42]} 23. Rac1 {[%emt 0:02:41]} Nc4+ {[%emt 0:00:21]} 24. Ke2 {[%emt 0:00:10]} Kf7 {[%emt 0:01:31]} 25. Rfd1 {[%emt 0:02:08]} Nd6 {[%emt 0:09:32]} 26. Rc6 {[%emt 0:00:16]} Ke7 {[%emt 0:02:26]} 27. Ra6 {[%emt 0:02:24]} Rc7 {[%emt 0:01:11]} 28. Ne6 {[%emt 0:00:45]} Rb7 {[%emt 0:00:31]} 29. Nc5 {[%emt 0:03:15]} Rc7 {[%emt 0:00:59]} 30. Nb3 {[%emt 0:02:39]} Rb8 {[%emt 0:05:09]} 31. Rxa5 {[%emt 0:01:06]} Rc2+ {[%emt 0:01:10]} 32. Rd2 {[%emt 0:01:02]} Rxd2+ {[%emt 0:00:20]} 33. Nxd2 {[%emt 0:00:07]} Rb7 {[%emt 0:00:51]} 34. Ra6 {[%emt 0:01:31]} Nb5 {[%emt 0:01:36]} 35. Rc6 {[%emt 0:01:28]} Rc7 {[%emt 0:01:06]} 36. Re6+ {[%emt 0:00:48]} Kd7 {[%emt 0:00:25]} 37. Ra6 {[%emt 0:00:11]} Nc3+ {[%emt 0:00:30]} 38. Ke1 {[%emt 0:00:00]} Nxd5 {[%emt 0:01:08]} 1/2-1/2

[Event "23rd OIBM 2019"]
[Site "Gmund am Tegernsee"]
[Date "2019.10.31"]
[Round "6.37"]
[White "Manu David Suthandram R"]
[Black "Koch, Yannick"]
[Result "1-0"]
[ECO "B40"]
[WhiteElo "2403"]
[BlackElo "2109"]
[Annotator "RC"]
[PlyCount "75"]
[EventDate "2019.10.17"]
[EventType "swiss"]
[EventCountry "GER"]
[SourceTitle "playchess.com"]
[Source "ChessBase"]
[SourceQuality "1"]
[TimeControl "40/5400+30:1800+30"]

1. e4 {[%emt 0:00:00]} c5 {[%emt 0:00:00]} 2. Nf3 {[%emt 0:00:06]} e6 {[%emt 0:00:00]} 3. Nc3 {[%emt 0:00:12]} Nc6 {[%emt 0:00:28]} 4. Bb5 {[%emt 0:00:19]} Nd4 {[%emt 0:00:32]} 5. Bd3 {[%emt 0:00:39]} Ne7 {[%emt 0:01:15]} 6. Nxd4 {[%emt 0:01:10]} cxd4 {[%emt 0:00:09]} 7. Ne2 {[%emt 0:05:30]} Nc6 {[%emt 0:00:34]} 8. O-O {[%emt 0:00:36]} Bc5 {[%emt 0:11:08]} 9. c3 {[%emt 0:01:57]} O-O {[%emt 0:03:15]} 10. Qc2 {[%emt 0:06:20]} dxc3 {[%emt 0:06:47]} 11. dxc3 {[%emt 0:01:26]} e5 {[%emt 0:06:20]} 12. b4 {[%emt 0:13:38]} Bb6 {[%emt 0:01:09]} 13. Kh1 {[%emt 0:02:27]} d6 {[%emt 0:07:14]} 14. f4 {[%emt 0:00:13]} exf4 {[%emt 0:02:21]} 15. Nxf4 {[%emt 0:07:53]} Ne5 {[%emt 0:02:28]} 16. Nd5 {[%emt 0:05:18]} Be6 {[%emt 0:03:00]} 17. Bf4 {[%emt 0:00:25]} a5 {[%emt 0:06:19]} 18. Bb5 {[%emt 0:09:15]} Rc8 {[%emt 0:06:57]} 19. Qd2 {[%emt 0:06:19]} Bxd5 {[%emt 0:10:00]} 20. exd5 {[%emt 0:13:47]} axb4 {[%emt 0:08:56]} 21. cxb4 {[%emt 0:00:08]} Qh4 {[%emt 0:00:13]} 22. Bg5 {[%emt 0:04:29]} Qd4 {[%emt 0:04:00]} 23. Rad1 {[%emt 0:10:29]} Qxd2 {[%emt 0:02:06]} 24. Rxd2 {[%emt 0:00:05]} f6 {[%emt 0:00:37]} 25. Bf4 {[%emt 0:00:54]} Rc3 {[%emt 0:04:24]} 26. h3 {[%emt 0:00:04]} Rfc8 {[%emt 0:05:10]} 27. Kh2 {[%emt 0:01:35]} Be3 {[%emt 0:00:32]} 28. Bxe3 {[%emt 0:01:19]} Rxe3 {[%emt 0:00:02]} 29. Rff2 {[%emt 0:01:11]} Re4 {[%emt 0:01:14]} 30. Rc2 {[%emt 0:00:42]} Nc4 {[%emt 0:03:49]} 31. a4 {[%emt 0:01:25]} Nb6 {[%emt 0:00:35]} 32. a5 {[%emt 0:00:40]} Rxc2 {[%emt 0:01:03]} 33. Rxc2 {[%emt 0:00:06]} Rxb4 {[%emt 0:01:07]} 34. Bd3 {[%emt 0:01:33]} Rd4 {[%emt 0:00:56]} 35. Rd2 {[%emt 0:00:31]} Rxd3 {[%emt 0:01:29]} 36. Rxd3 {[%emt 0:00:06]} Nd7 {[%emt 0:00:20]} 37. Rb3 {[%emt 0:00:16]} Nc5 38. Rc3 1-0

[Event "23rd OIBM 2019"]
[Site "Gmund am Tegernsee"]
[Date "2019.10.31"]
[Round "6.39"]
[White "Juergens, Klaus"]
[Black "Soham Das"]
[Result "1-0"]
[ECO "A88"]
[WhiteElo "2121"]
[BlackElo "2376"]
[Annotator "RC"]
[PlyCount "65"]
[EventDate "2019.10.17"]
[EventType "swiss"]
[EventCountry "GER"]
[SourceTitle "playchess.com"]
[Source "ChessBase"]
[SourceQuality "1"]
[TimeControl "40/5400+30:1800+30"]

1. Nf3 {[%emt 0:00:00]} f5 {[%emt 0:00:05]} 2. c4 {[%emt 0:00:00]} Nf6 {[%emt 0:00:17]} 3. g3 {[%emt 0:00:07]} g6 {[%emt 0:00:05]} 4. Bg2 {[%emt 0:00:10]} Bg7 {[%emt 0:00:06]} 5. O-O {[%emt 0:00:10]} O-O {[%emt 0:00:04]} 6. Nc3 {[%emt 0:00:23]} d6 {[%emt 0:00:13]} 7. d4 {[%emt 0:00:16]} c6 {[%emt 0:00:06]} 8. b3 {[%emt 0:04:17]} Qa5 {[%emt 0:00:38]} 9. Bd2 {[%emt 0:03:49]} Qc7 {[%emt 0:00:06]} 10. Rc1 {[%emt 0:02:56]} e5 {[%emt 0:05:07]} 11. dxe5 {[%emt 0:07:44]} dxe5 {[%emt 0:00:21]} 12. Qc2 {[%emt 0:18:16]} Na6 {[%emt 0:06:49]} 13. Rcd1 {[%emt 0:00:31]} Qe7 {[%emt 0:21:39]} 14. Qc1 {[%emt 0:06:23]} e4 {[%emt 0:18:59]} 15. Nd4 {[%emt 0:05:06]} Rd8 {[%emt 0:00:09]} 16. Bg5 {[%emt 0:00:40]} Qf8 {[%emt 0:01:17]} 17. f3 {[%emt 0:04:28]} h6 {[%emt 0:07:38]} 18. Be3 {[%emt 0:00:21]} g5 {[%emt 0:25:33]} 19. fxe4 {[%emt 0:07:32]} Ng4 {[%emt 0:00:01]} 20. Nxf5 {[%emt 0:01:21]} Bxf5 {[%emt 0:02:51]} 21. exf5 {[%emt 0:09:07]} Qe7 {[%emt 0:04:57]} 22. Ne4 {[%emt 0:01:54]} Bb2 {[%emt 0:03:27]} 23. Rxd8+ {[%emt 0:09:27]} Rxd8 {[%emt 0:00:30]} 24. Qxb2 {[%emt 0:00:51]} Nxe3 {[%emt 0:00:05]} 25. f6 {[%emt 0:00:43]} Qf7 {[%emt 0:00:33]} 26. Rf3 {[%emt 0:01:10]} Nd1 {[%emt 0:00:52]} 27. Qe5 {[%emt 0:00:48]} Re8 {[%emt 0:00:31]} 28. Qf5 {[%emt 0:00:27]} Rd8 {[%emt 0:00:30]} 29. c5 {[%emt 0:03:06]} Rd5 {[%emt 0:00:30]} 30. Qc8+ {[%emt 0:01:33]} Qf8 {[%emt 0:00:30]} 31. f7+ {[%emt 0:01:49]} Kg7 {[%emt 0:00:07]} 32. Qxf8+ {[%emt 0:00:39]} Kxf8 {[%emt 0:00:01]} 33. Nf6 {[%emt 0:00:15]} 1-0